fUST/lending_fUST_20240504
["ID","MTS","AMOUNT","RATE_DAILY","PERIOD"]
[325366403,1714753751310,-500.0,0.00024657,2]
[325366404,1714753751333,-500.0,0.00024657,2]
[325366405,1714753751352,-500.0,0.00024657,2]
[325366406,1714753751374,-500.0,0.00024657,2]
[325366407,1714753751394,-500.0,0.00024657,2]
[325366408,1714753751416,-500.0,0.00024657,2]
[325366409,1714753751435,-6048.48,0.00024657,2]
[325366410,1714753751458,-500.0,0.00024657,2]
[325366411,1714753751478,-500.0,0.00024657,2]
[325366412,1714753751502,-500.0,0.00024657,2]
[325366413,1714753751522,-1794.22,0.00024657,2]
[325366414,1714753751543,-659.31,0.00024657,2]
[325366415,1714753751563,-500.0,0.00024657,2]
[325366416,1714753751582,-595.97,0.00024657,2]
[325366417,1714753751602,-5751.33,0.00024657,2]
[325366418,1714753751622,-1130.29,0.00024657,2]
[325366419,1714753751642,-501.45145353,0.00024657,2]
[325366420,1714753751661,-2525.67,0.00024657,2]
[325366421,1714753751680,-500.0,0.00024657,2]
[325366422,1714753751704,-500.0,0.00024657,2]
[325366423,1714753751724,-2285.52,0.00024657,2]
[325366424,1714753751744,-500.0,0.00024657,2]
[325366425,1714753751764,-500.0,0.00024657,2]
[325366426,1714753751784,-500.0,0.00024657,2]
[325366427,1714753751803,-507.9888182,0.00024657,2]
[325366428,1714753751822,-645.24,0.00024657,2]
[325366429,1714753751840,-500.0,0.00024657,2]
[325366430,1714753751859,-983.82,0.00024657,2]
[325366431,1714753751877,-500.0,0.00024657,2]
[325366432,1714753752006,-566.87,0.00024657,2]
[325366433,1714753752026,-500.0,0.00024657,2]
[325366434,1714753752046,-500.0,0.00024657,2]
[325366435,1714753752071,-8538.76,0.00024657,2]
[325366436,1714753752091,-500.0,0.00024657,2]
[325366437,1714753752113,-500.0,0.00024657,2]
[325366438,1714753752132,-730.69,0.00024657,2]
[325366439,1714753752153,-500.0,0.00024657,2]
[325366440,1714753752173,-975.81,0.00024657,2]
[325366441,1714753752193,-500.0,0.00024657,2]
[325366442,1714753752213,-500.0,0.00024657,2]
[325366443,1714753752232,-500.0,0.00024657,2]
[325366444,1714753752251,-1247.48,0.00024657,2]
[325366445,1714753752271,-500.0,0.00024657,2]
[325366446,1714753752290,-225.54990279,0.00024657,2]
[325366447,1714753752310,-500.0,0.00024657,2]
[325366448,1714753752334,-500.0,0.00024657,2]
[325366449,1714753752354,-500.0,0.00024657,2]
[325366450,1714753752377,-500.0,0.00024657,2]
[325366451,1714753752397,-500.0,0.00024657,2]
[325366452,1714753752418,-7928.69,0.00024657,2]
[325366453,1714753752441,-500.0,0.00024657,2]
[325366454,1714753752463,-500.0,0.00024657,2]
[325366455,1714753752485,-4108.71,0.00024657,2]
[325366456,1714753752507,-2513.88,0.00024657,2]
[325366457,1714753752528,-500.0,0.00024657,2]
[325366458,1714753752548,-500.0,0.00024657,2]
[325366459,1714753752568,-500.0,0.00024657,2]
[325366460,1714753752588,-4742.35,0.00024657,2]
[325366461,1714753752608,-1106.15,0.00024657,2]
[325366462,1714753752628,-500.0,0.00024657,2]
[325366463,1714753752648,-759.76,0.00024657,2]
[325366464,1714753752668,-500.0,0.00024657,2]
[325366465,1714753752689,-500.0,0.00024657,2]
[325366466,1714753752710,-510.47,0.00024657,2]
[325366467,1714753752730,-500.99355882,0.00024657,2]
[325366468,1714753752749,-500.0,0.00024657,2]
[325366469,1714753752770,-652.5,0.00024657,2]
[325366470,1714753752790,-500.0,0.00024657,2]
[325366471,1714753752809,-2592.74,0.00024657,2]
[325366472,1714753752830,-500.0,0.00024657,2]
[325366473,1714753752850,-729.49,0.00024657,2]
[325366474,1714753752870,-500.0,0.00024657,2]
[325366475,1714753752890,-500.0,0.00024657,2]
[325366476,1714753752909,-500.0,0.00024657,2]
[325366477,1714753752929,-500.0,0.00024657,2]
[325366478,1714753752948,-501.84,0.00024657,2]
[325366479,1714753752968,-500.0,0.00024657,2]
[325366480,1714753752986,-500.0,0.00024657,2]
[325366481,1714753753009,-510.52574673,0.00024657,2]
[325366482,1714753753036,-3466.12,0.00024657,2]
[325366483,1714753753061,-516.23418292,0.00024657,2]
[325366484,1714753753081,-500.0,0.00024657,2]
[325366485,1714753753100,-500.0,0.00024657,2]
[325366486,1714753753121,-500.0,0.00024657,2]
[325366487,1714753753143,-500.0,0.00024657,2]
[325366488,1714753753163,-500.0,0.00024657,2]
[325366489,1714753753183,-7526.69,0.00024657,2]
[325366490,1714753753204,-645.74,0.00024657,2]
[325366491,1714753753223,-500.0,0.00024657,2]
[325366492,1714753753242,-500.0,0.00024657,2]
[325366493,1714753753262,-500.71721571,0.00024657,2]
[325366494,1714753753281,-500.0,0.00024657,2]
[325366495,1714753753300,-500.0,0.00024657,2]
[325366496,1714753753320,-1106.9,0.00024657,2]
[325366497,1714753753344,-500.0,0.00024657,2]
[325366498,1714753753364,-570.7,0.00024657,2]
[325366499,1714753753383,-500.0,0.00024657,2]
[325366500,1714753753404,-792.98,0.00024657,2]
[325366501,1714753753425,-818.84,0.00024657,2]
[325366502,1714753753448,-500.0,0.00024657,2]
[325366503,1714753753470,-1516.35,0.00024657,2]
[325366504,1714753753489,-500.0,0.00024657,2]
[325366505,1714753753509,-570.01027169,0.00024657,2]
[325366506,1714753753529,-500.0,0.00024657,2]
[325366507,1714753753548,-4425.94,0.00024657,2]
[325366508,1714753753568,-500.0,0.00024657,2]
[325366509,1714753753588,-500.0,0.00024657,2]
[325366510,1714753753608,-500.0,0.00024657,2]
[325366511,1714753753627,-500.0,0.00024657,2]
[325366512,1714753753646,-500.0,0.00024657,2]
[325366513,1714753753666,-500.0,0.00024657,2]
[325366514,1714753753685,-502.13764745,0.00024657,2]
[325366515,1714753753706,-31359.11,0.00024657,2]
[325366516,1714753753726,-500.0,0.00024657,2]
[325366517,1714753753745,-500.0,0.00024657,2]
[325366518,1714753753765,-500.0,0.00024657,2]
[325366519,1714753753784,-4927.78,0.00024657,2]
[325366520,1714753753803,-1068.27,0.00024657,2]
[325366521,1714753753822,-500.0,0.00024657,2]
[325366522,1714753753842,-500.0,0.00024657,2]
[325366523,1714753753861,-500.0,0.00024657,2]
[325366524,1714753753880,-500.0,0.00024657,2]
[325366525,1714753753899,-500.0,0.00024657,2]
[325366526,1714753753918,-2610.17,0.00024657,2]
[325366527,1714753753937,-500.0,0.00024657,2]
[325366528,1714753753958,-642.24,0.00024657,2]
[325366529,1714753753977,-500.0,0.00024657,2]
[325366530,1714753753997,-1751.9,0.00024657,2]
[325366531,1714753754016,-500.0,0.00024657,2]
[325366532,1714753754035,-500.0,0.00024657,2]
[325366533,1714753754054,-587.14,0.00024657,2]
[325366534,1714753754074,-154.61898418,0.00024694,2]
[325366535,1714753754093,-154.61898418,0.00024763,2]
[325366536,1714753754116,-154.65974855,0.00024829,2]
[325366537,1714753754136,-5244.99748069,0.00024831,3]
[325366538,1714753754672,-240.0861284,0.0002075,2]
[325366539,1714753754692,-685.62211229,0.00024655,2]
[325366540,1714753754713,-17393.48775931,0.00024831,3]
[325366541,1714753755439,-159.311331,0.00022,2]
[325366542,1714753755463,-32916.51476,0.00024831,3]
[325366543,1714753755485,-154.61898418,0.00024831,2]
[325366544,1714753755508,-12922.9418332,0.00024931,5]
[325366545,1714753755528,-500.0,0.00024931,2]
[325366546,1714753755547,-6686.56474102,0.00024931,7]
[325366547,1714753762146,-2200.92174383,0.00024656,2]
[325366548,1714753762165,-500.0,0.00024657,2]
[325366549,1714753762308,-500.0,0.00024657,2]
[325366550,1714753762332,-154.65974855,0.00024829,2]
[325366551,1714753762353,-188.59859619,0.0002483,2]
[325366552,1714753762373,-16152.88,0.00024921,3]
[325366553,1714753762392,-1872.6805087,0.0002493,2]
[325366554,1714753762412,-655.20171601,0.0002493,2]
[325366555,1714753762431,-41218.88237665,0.00024931,7]
[325366556,1714753762461,-45811.51187537,0.00024931,7]
[325366557,1714753762482,-358.7235086,0.00024931,2]
[325366558,1714753762502,-500.0,0.00024931,2]
[325366559,1714753762522,-500.0,0.00024931,2]
[325366560,1714753762542,-500.0,0.00024931,2]
[325366561,1714753762562,-500.0,0.00024931,2]
[325366562,1714753762581,-500.0,0.00024931,2]
[325366563,1714753762600,-500.0,0.00024931,2]
[325366564,1714753762620,-500.0,0.00024931,2]
[325366565,1714753762640,-500.0,0.00024931,2]
[325366566,1714753762659,-500.0,0.00024931,2]
[325366567,1714753762680,-500.0,0.00024931,2]
[325366568,1714753762700,-500.0,0.00024931,2]
[325366569,1714753762719,-500.0,0.00024931,2]
[325366570,1714753762740,-1000.0,0.00024931,2]
[325366571,1714753762760,-500.0,0.00024931,2]
[325366572,1714753762781,-500.0,0.00024931,2]
[325366573,1714753762801,-500.0,0.00024931,2]
[325366574,1714753762821,-500.0,0.00024931,2]
[325366575,1714753762840,-500.0,0.00024931,2]
[325366576,1714753762860,-500.0,0.00024931,2]
[325366577,1714753762880,-500.0,0.00024931,2]
[325366578,1714753762899,-500.0,0.00024931,2]
[325366579,1714753762918,-500.0,0.00024931,2]
[325366580,1714753762937,-500.0,0.00024931,2]
[325366581,1714753762956,-500.0,0.00024931,2]
[325366582,1714753762975,-500.0,0.00024931,2]
[325366583,1714753762995,-500.0,0.00024931,2]
[325366584,1714753763014,-500.0,0.00024931,2]
[325366585,1714753763034,-500.0,0.00024931,2]
[325366586,1714753763054,-500.0,0.00024931,2]
[325366587,1714753763073,-500.0,0.00024931,2]
[325366588,1714753763092,-500.0,0.00024931,2]
[325366589,1714753763110,-500.0,0.00024931,2]
[325366590,1714753763129,-500.0,0.00024931,2]
[325366591,1714753763148,-500.0,0.00024931,2]
[325366592,1714753763167,-500.0,0.00024931,2]
[325366593,1714753763186,-500.0,0.00024931,2]
[325366594,1714753763205,-505.04670195,0.00024931,2]
[325366595,1714753763224,-500.0,0.00024931,2]
[325366596,1714753763243,-500.0,0.00024931,2]
[325366597,1714753763262,-500.0,0.00024931,2]
[325366598,1714753763282,-500.0,0.00024931,2]
[325366599,1714753763303,-999.04,0.00024931,2]
[325366600,1714753763323,-500.0,0.00024931,2]
[325366601,1714753763346,-505.4944168,0.00024931,2]
[325366602,1714753763366,-500.0,0.00024931,2]
[325366603,1714753763387,-502.74529437,0.00024931,2]
[325366604,1714753763408,-500.0,0.00024931,2]
[325366605,1714753763430,-500.0,0.00024931,2]
[325366606,1714753763452,-500.0,0.00024931,2]
[325366607,1714753763472,-500.0,0.00024931,2]
[325366608,1714753763493,-500.0,0.00024931,2]
[325366609,1714753763513,-500.0,0.00024931,2]
[325366610,1714753763532,-500.0,0.00024931,2]
[325366611,1714753763552,-500.0,0.00024931,2]
[325366612,1714753763572,-700.55,0.00024931,2]
[325366613,1714753763592,-500.0,0.00024931,2]
[325366614,1714753763612,-1985.95,0.00024931,2]
[325366615,1714753763631,-500.0,0.00024931,2]
[325366616,1714753763651,-500.0,0.00024931,2]
[325366617,1714753763672,-500.0,0.00024931,2]
[325366618,1714753763693,-500.0,0.00024931,2]
[325366619,1714753763714,-897.21,0.00024931,2]
[325366620,1714753763734,-816.2,0.00024931,2]
[325366621,1714753763754,-1282.13,0.00024931,2]
[325366622,1714753763774,-1267.01,0.00024931,2]
[325366623,1714753763794,-500.0,0.00024931,2]
[325366624,1714753763814,-500.0,0.00024931,2]
[325366625,1714753763835,-500.0,0.00024931,2]
[325366626,1714753763854,-500.0,0.00024931,2]
[325366627,1714753763874,-164.4045794,0.00024931,2]
[325366628,1714753763895,-500.0,0.00024931,2]
[325366629,1714753763914,-480.68400041,0.00024931,2]
[325366630,1714753763934,-500.0,0.00024931,2]
[325366631,1714753763954,-500.0,0.00024931,2]
[325366632,1714753763974,-846.44,0.00024931,2]
[325366633,1714753763993,-500.0,0.00024931,2]
[325366634,1714753764012,-502.00738883,0.00024931,2]
[325366635,1714753764031,-500.0,0.00024931,2]
[325366636,1714753764049,-500.0,0.00024931,2]
[325366637,1714753764068,-500.0,0.00024931,2]
[325366638,1714753764087,-500.0,0.00024931,2]
[325366639,1714753764106,-500.0,0.00024931,2]
[325366640,1714753764126,-555.09,0.00024931,2]
[325366641,1714753764145,-500.0,0.00024931,2]
[325366642,1714753764165,-776.52,0.00024931,2]
[325366643,1714753764186,-767.29,0.00024931,2]
[325366644,1714753764206,-500.0,0.00024931,2]
[325366645,1714753764225,-500.0,0.00024931,2]
[325366646,1714753764346,-503.82510996,0.00024931,2]
[325366647,1714753764370,-500.0,0.00024931,2]
[325366648,1714753764390,-500.0,0.00024931,2]
[325366649,1714753764410,-500.0,0.00024931,2]
[325366650,1714753764431,-500.0,0.00024931,2]
[325366651,1714753764454,-500.0,0.00024931,2]
[325366652,1714753764474,-500.0,0.00024931,2]
[325366653,1714753764501,-501.35373229,0.00024931,2]
[325366654,1714753764523,-500.0,0.00024931,2]
[325366655,1714753764545,-1658.96,0.00024931,2]
[325366656,1714753764566,-875.72,0.00024931,2]
[325366657,1714753764586,-500.0,0.00024931,2]
[325366658,1714753764606,-500.0,0.00024931,2]
[325366659,1714753764626,-500.0,0.00024931,2]
[325366660,1714753764646,-524.33,0.00024931,2]
[325366661,1714753764666,-500.0,0.00024931,2]
[325366662,1714753764686,-632.61,0.00024931,2]
[325366663,1714753764707,-1206.19,0.00024931,2]
[325366664,1714753764727,-500.0,0.00024931,2]
[325366665,1714753764747,-500.0,0.00024931,2]
[325366666,1714753764767,-500.0,0.00024931,2]
[325366667,1714753764786,-500.0,0.00024931,2]
[325366668,1714753764806,-500.0,0.00024931,2]
[325366669,1714753764824,-500.0,0.00024931,2]
[325366670,1714753764844,-500.0,0.00024931,2]
[325366671,1714753764864,-500.0,0.00024931,2]
[325366672,1714753764883,-500.0,0.00024931,2]
[325366673,1714753764903,-500.0,0.00024931,2]
[325366674,1714753764924,-500.0,0.00024931,2]
[325366675,1714753764944,-500.0,0.00024931,2]
[325366676,1714753764965,-593.79,0.00024931,2]
[325366677,1714753764985,-616.52,0.00024931,2]
[325366678,1714753765006,-500.0,0.00024931,2]
[325366679,1714753765030,-500.0,0.00024931,2]
[325366680,1714753765049,-578.39,0.00024931,2]
[325366681,1714753765069,-500.0,0.00024931,2]
[325366682,1714753765088,-200.79319829,0.00024931,2]
[325366683,1714753765108,-600.24,0.00024931,2]
[325366684,1714753765128,-106.35151373,0.00024931,2]
[325366685,1714753766093,-1078.72294783,0.00020913,2]
[325366687,1714753781449,1146.68022854,0.00020913,2]
[325366688,1714753782052,662.63959658,0.00020913,2]
[325366689,1714753782720,154.65974855,0.00020913,2]
[325366690,1714753794040,2028.85788365,0.00020913,2]
[325366691,1714753797452,1146.68022854,0.00020913,2]
[325366692,1714753802715,154.65974855,0.00020913,2]
[325366706,1714753829927,21708.90239354,0.00018,2]
[325366744,1714753832067,558.90996056,0.00020913,2]
[325366757,1714753832197,-240.0861284,0.00024382,2]
[325366759,1714753832207,-500.0,0.00024657,2]
[325366761,1714753832216,-154.65974855,0.00024657,2]
[325366762,1714753832225,-500.0,0.00024657,2]
[325366763,1714753832234,-943.39,0.00024657,2]
[325366764,1714753832243,-500.0,0.00024657,2]
[325366765,1714753832252,-7375.86412305,0.00024657,2]
[325366766,1714753832265,-807.11587695,0.00024657,2]
[325366767,1714753832275,-500.0,0.00024657,2]
[325366768,1714753832284,-500.0,0.00024657,2]
[325366769,1714753832293,-500.0,0.00024657,2]
[325366770,1714753832303,-571.13,0.00024657,2]
[325366771,1714753832312,-500.0,0.00024657,2]
[325366772,1714753832322,-711.81,0.00024657,2]
[325366773,1714753832332,-500.0,0.00024657,2]
[325366774,1714753832343,-1820.46,0.00024657,2]
[325366775,1714753832356,-1988.28292305,0.00024657,2]
[325366776,1714753832368,-3523.40707695,0.00024657,2]
[325366777,1714753832376,-500.0,0.00024657,2]
[325366778,1714753832387,-500.0,0.00024657,2]
[325366779,1714753832396,-500.0,0.00024657,2]
[325366780,1714753832405,-703.35,0.00024657,2]
[325366781,1714753832413,-1175.28,0.00024657,2]
[325366782,1714753832423,-444.28093002,0.00024657,2]
[325366783,1714753832433,-500.0,0.00024657,2]
[325366784,1714753832442,-500.0,0.00024657,2]
[325366785,1714753832452,-509.48688301,0.00024657,2]
[325366786,1714753832461,-500.0,0.00024657,2]
[325366787,1714753832470,-500.0,0.00024657,2]
[325366788,1714753832481,-500.0,0.00024657,2]
[325366789,1714753832490,-802.74,0.00024657,2]
[325366791,1714753832499,-5796.46,0.00024657,2]
[325366792,1714753832509,-935.15,0.00024657,2]
[325366794,1714753832520,-500.0,0.00024657,2]
[325366795,1714753832529,-500.0,0.00024657,2]
[325366796,1714753832538,-251.47480633,0.00024919,2]
[325366797,1714753832547,-1146.68022854,0.0002492,2]
[325366798,1714753832557,-12725.38,0.00024921,3]
[325366799,1714753832567,-10604.48,0.00024921,3]
[325366800,1714753832576,-393.64848627,0.00024931,2]
[325366801,1714753832587,-500.0,0.00024931,2]
[325366802,1714753832597,-500.0,0.00024931,2]
[325366803,1714753832608,-1146.72,0.00024931,2]
[325366804,1714753832618,-500.0,0.00024931,2]
[325366805,1714753832629,-500.0,0.00024931,2]
[325366806,1714753832638,-500.0,0.00024931,2]
[325366807,1714753832647,-500.0,0.00024931,2]
[325366808,1714753832657,-1028.82,0.00024931,2]
[325366809,1714753832666,-500.0,0.00024931,2]
[325366810,1714753832675,-500.0,0.00024931,2]
[325366811,1714753832685,-1150.14,0.00024931,2]
[325366812,1714753832694,-500.0,0.00024931,2]
[325366813,1714753832703,-603.44,0.00024931,2]
[325366814,1714753832713,-500.0,0.00024931,2]
[325366815,1714753832723,-501.45523699,0.00024931,2]
[325366816,1714753832733,-500.0,0.00024931,2]
[325366817,1714753832742,-500.0,0.00024931,2]
[325366818,1714753832752,-500.0,0.00024931,2]
[325366819,1714753832762,-500.0,0.00024931,2]
[325366820,1714753832773,-500.0,0.00024931,2]
[325366821,1714753832783,-500.0,0.00024931,2]
[325366822,1714753832792,-500.0,0.00024931,2]
[325366823,1714753832801,-527.29062978,0.00024931,2]
[325366824,1714753832810,-500.0,0.00024931,2]
[325366825,1714753832819,-498.58354279,0.00024931,2]
[325366826,1714753832828,-500.0,0.00024931,2]
[325366827,1714753832838,-707.03,0.00024931,2]
[325366828,1714753832848,-633.79035964,0.00024931,2]
[325366829,1714753832858,-802.34,0.00024931,2]
[325366830,1714753832867,-1191.56,0.00024931,2]
[325366831,1714753832876,-500.0,0.00024931,2]
[325366832,1714753832885,-500.0,0.00024931,2]
[325366833,1714753832895,-1242.79,0.00024931,2]
[325366834,1714753832905,-500.0,0.00024931,2]
[325366835,1714753832915,-1910.18,0.00024931,2]
[325366836,1714753832924,-608.25107978,0.00024931,2]
[325366837,1714753832933,-500.0,0.00024931,2]
[325366838,1714753832942,-500.0,0.00024931,2]
[325366839,1714753832951,-500.0,0.00024931,2]
[325366840,1714753832960,-500.0,0.00024931,2]
[325366841,1714753832969,-500.0,0.00024931,2]
[325366842,1714753832978,-500.0,0.00024931,2]
[325366843,1714753832987,-500.0,0.00024931,2]
[325366844,1714753832996,-659.31,0.00024931,2]
[325366845,1714753833006,-500.0,0.00024931,2]
[325366846,1714753833018,-1130.29,0.00024931,2]
[325366847,1714753833027,-2525.67,0.00024931,2]
[325366848,1714753833036,-500.0,0.00024931,2]
[325366849,1714753833045,-500.0,0.00024931,2]
[325366850,1714753833054,-2285.52,0.00024931,2]
[325366851,1714753833063,-500.0,0.00024931,2]
[325366852,1714753833072,-500.0,0.00024931,2]
[325366853,1714753833081,-645.24,0.00024931,2]
[325366854,1714753833090,-983.82,0.00024931,2]
[325366855,1714753833100,-500.0,0.00024931,2]
[325366856,1714753833109,-566.87,0.00024931,2]
[325366857,1714753833118,-500.0,0.00024931,2]
[325366858,1714753833128,-500.0,0.00024931,2]
[325366859,1714753833137,-500.0,0.00024931,2]
[325366860,1714753833146,-730.69,0.00024931,2]
[325366861,1714753833155,-500.0,0.00024931,2]
[325366862,1714753833164,-500.0,0.00024931,2]
[325366863,1714753833173,-500.0,0.00024931,2]
[325366864,1714753833182,-1247.48,0.00024931,2]
[325366865,1714753833191,-500.0,0.00024931,2]
[325366866,1714753833199,-500.0,0.00024931,2]
[325366867,1714753833208,-500.0,0.00024931,2]
[325366868,1714753833218,-500.0,0.00024931,2]
[325366869,1714753833227,-500.0,0.00024931,2]
[325366870,1714753833236,-500.0,0.00024931,2]
[325366871,1714753833245,-7928.69,0.00024931,2]
[325366872,1714753833254,-500.0,0.00024931,2]
[325366873,1714753833265,-500.0,0.00024931,2]
[325366874,1714753833274,-4108.71,0.00024931,2]
[325366875,1714753833283,-2513.88,0.00024931,2]
[325366876,1714753833292,-500.0,0.00024931,2]
[325366877,1714753833301,-500.0,0.00024931,2]
[325366879,1714753833311,-500.0,0.00024931,2]
[325366880,1714753833320,-4742.35,0.00024931,2]
[325366881,1714753833329,-1106.15,0.00024931,2]
[325366882,1714753833340,-500.0,0.00024931,2]
[325366883,1714753833352,-759.76,0.00024931,2]
[325366884,1714753833361,-500.0,0.00024931,2]
[325366885,1714753833371,-500.0,0.00024931,2]
[325366886,1714753833381,-510.47,0.00024931,2]
[325366887,1714753833390,-500.0,0.00024931,2]
[325366888,1714753833399,-652.5,0.00024931,2]
[325366889,1714753833409,-500.0,0.00024931,2]
[325366890,1714753833419,-2592.74,0.00024931,2]
[325366891,1714753833428,-500.0,0.00024931,2]
[325366892,1714753833437,-729.49,0.00024931,2]
[325366893,1714753833446,-500.0,0.00024931,2]
[325366894,1714753833455,-501.66716479,0.00024931,2]
[325366895,1714753833465,-500.0,0.00024931,2]
[325366896,1714753833474,-500.0,0.00024931,2]
[325366897,1714753833483,-501.84,0.00024931,2]
[325366898,1714753833493,-500.0,0.00024931,2]
[325366899,1714753833502,-509.67926762,0.00024931,2]
[325366900,1714753833511,-3466.12,0.00024931,2]
[325366901,1714753833524,-500.0,0.00024931,2]
[325366902,1714753833534,-500.0,0.00024931,2]
[325366903,1714753833543,-516.45266458,0.00024931,2]
[325366904,1714753833552,-500.0,0.00024931,2]
[325366905,1714753833561,-500.0,0.00024931,2]
[325366906,1714753833571,-7526.69,0.00024931,2]
[325366907,1714753833580,-645.74,0.00024931,2]
[325366908,1714753833589,-500.0,0.00024931,2]
[325366909,1714753833599,-500.0,0.00024931,2]
[325366910,1714753833608,-500.0,0.00024931,2]
[325366911,1714753833706,-1106.9,0.00024931,2]
[325366912,1714753833715,-500.0,0.00024931,2]
[325366913,1714753833725,-500.0,0.00024931,2]
[325366914,1714753833735,-570.7,0.00024931,2]
[325366915,1714753833745,-500.0,0.00024931,2]
[325366916,1714753833755,-792.98,0.00024931,2]
[325366917,1714753833766,-818.84,0.00024931,2]
[325366918,1714753833775,-500.0,0.00024931,2]
[325366919,1714753833784,-1516.35,0.00024931,2]
[325366920,1714753833793,-500.0,0.00024931,2]
[325366921,1714753833803,-506.60774033,0.00024931,2]
[325366922,1714753833812,-4425.94,0.00024931,2]
[325366923,1714753833821,-500.0,0.00024931,2]
[325366924,1714753833831,-500.0,0.00024931,2]
[325366925,1714753833840,-500.0,0.00024931,2]
[325366926,1714753833849,-500.0,0.00024931,2]
[325366927,1714753833858,-500.0,0.00024931,2]
[325366928,1714753833867,-500.0,0.00024931,2]
[325366929,1714753833877,-31359.11,0.00024931,2]
[325366930,1714753833886,-500.0,0.00024931,2]
[325366931,1714753833895,-352.86038135,0.00024931,2]
[325366932,1714753833904,-500.0,0.00024931,2]
[325366933,1714753833913,-3992.1113294,0.00024931,2]
[325366934,1714753833927,-935.6686706,0.00024931,2]
[325366935,1714753833936,-1068.27,0.00024931,2]
[325366936,1714753833946,-500.0,0.00024931,2]
[325366937,1714753833956,-500.0,0.00024931,2]
[325366938,1714753833965,-500.0,0.00024931,2]
[325366939,1714753833975,-500.0,0.00024931,2]
[325366940,1714753833984,-584.94711571,0.00024931,2]
[325366941,1714753833993,-2610.17,0.00024931,2]
[325366942,1714753834002,-500.0,0.00024931,2]
[325366943,1714753834012,-642.24,0.00024931,2]
[325366944,1714753834021,-500.0,0.00024931,2]
[325366945,1714753834031,-1751.9,0.00024931,2]
[325366946,1714753834040,-500.0,0.00024931,2]
[325366947,1714753834049,-500.0,0.00024931,2]
[325366948,1714753834058,-587.14,0.00024931,2]
[325366949,1714753834067,-500.0,0.00024931,2]
[325366951,1714753834076,-500.0,0.00024931,2]
[325366952,1714753834085,-943.39,0.00024931,2]
[325366953,1714753834095,-500.0,0.00024931,2]
[325366954,1714753834104,-8182.98,0.00024931,2]
[325366955,1714753834113,-500.0,0.00024931,2]
[325366956,1714753834122,-500.0,0.00024931,2]
[325366957,1714753834131,-500.0,0.00024931,2]
[325366958,1714753834140,-571.13,0.00024931,2]
[325366959,1714753834149,-500.0,0.00024931,2]
[325366960,1714753834159,-711.81,0.00024931,2]
[325366961,1714753834168,-500.0,0.00024931,2]
[325366962,1714753834178,-5511.69,0.00024931,2]
[325366963,1714753834187,-1820.46,0.00024931,2]
[325366964,1714753834196,-500.0,0.00024931,2]
[325366965,1714753834205,-500.0,0.00024931,2]
[325366966,1714753834214,-500.0,0.00024931,2]
[325366967,1714753834223,-703.35,0.00024931,2]
[325366968,1714753834232,-1175.28,0.00024931,2]
[325366969,1714753834242,-500.0,0.00024931,2]
[325366970,1714753834251,-500.0,0.00024931,2]
[325366971,1714753834260,-500.0,0.00024931,2]